[Event "Chinese League Div-A Rapid 2022"]
[Site "Fuling,Chongqing"]
[Date "2022.09.08"]
[Round "3.2"]
[White "Lou, Yiping"]
[Black "Lin, Chen"]
[Result "1-0"]
[ECO "D15"]
[WhiteElo "2485"]
[BlackElo "2485"]
[Annotator "TA"]
[PlyCount "45"]
[EventDate "2022.09.07"]
[EventType "team-tourn"]
[EventCountry "CHN"]
[SourceTitle "playchess.com"]
[Source "ChessBase"]
[SourceQuality "1"]
[TimeControl "1500+10"]

{[%evp 12,45,25,27,20,20,24,30,25,18,20,27,20,35,41,16,35,45,57,49,108,100,98,101,104,104,133,120,124,119,211,223,267,261,339,330]} 1. d4 {[%emt 0:00:03]} d5 {[%emt 0:00:02]} 2. c4 {[%emt 0:00:01]} c6 {[%emt 0:00:03]} 3. Nf3 {[%emt 0:00:05]} Nf6 {[%emt 0:00:02]} 4. Nc3 {[%emt 0:00:07]} a6 {[%emt 0:00:03]} 5. c5 {[%emt 0:00:21]} Nbd7 {[%emt 0:00:03]} 6. Bf4 {[%emt 0:00:08]} Nh5 {[%emt 0:00:02]} 7. Bd2 {[%emt 0:00:05]} Nhf6 {[%emt 0:00:01][%cal Oe7e5] Inhibits e4. D15: Slav Defence: 4 Nc3 a6 and gambit lines after 4 Nc3 dxc4.} 8. Qc2 {[%emt 0:00:16]} g6 {[%emt 0:00:40]} 9. g3 {[%emt 0:00:03]} Bg7 {[%emt 0:00:09][%cal Oe7e5] White has an edge.} 10. Bg2 {[%emt 0:00:02]} O-O {[%emt 0:00:04]} 11. O-O {[%emt 0:00:08]} Re8 {[%emt 0:00:33]} 12. Rad1 {[%emt 0:00:59]} (12. Rfd1 {feels hotter.} e5 13. dxe5 Ng4 14. e6) 12... b6 {[%emt 0:10:51]} 13. cxb6 {[%emt 0:01:48]} Qxb6 {[%emt 0:00:03] [#]} 14. Rfe1 $146 {[%emt 0:01:30]} ({Predecessor:} 14. Bf4 a5 15. Na4 Qb5 16. Rfe1 Ba6 17. Ne5 Rac8 18. Rc1 e6 19. Nd3 Bf8 20. Bg5 {1-0 (44) Bocharov,D (2602)-Dgebuadze,A (2504) Cappelle la Grande 2007}) 14... e5 {[%emt 0:01:54]} 15. Na4 {[%emt 0:01:28]} Qb5 {[%emt 0:03:31] [#]} (15... Qa7 $14) 16. dxe5 $1 $16 {[%emt 0:03:02]} Nxe5 {[%emt 0:00:02]} 17. Nd4 {[%emt 0:00:04][%cal Bf3d4,Bd4c6,Bc6e5][%mdl 32] Inhibits Bf5.} Qb7 {[%emt 0:00:02]} 18. Bf4 {[%emt 0:00:20]} Ne4 {[%emt 0:01:10]} 19. Bxe5 {[%emt 0:02:58]} Bxe5 {[%emt 0:01:36]} 20. Qxc6 {[%emt 0:02:09]} Qxc6 {[%emt 0:00:07]} (20... Kf8 $16 {keeps fighting.} 21. Bxe4 dxe4) 21. Nxc6 $18 {[%emt 0:00:07] [#] Hoping for Nb6. Pair of Knights!} Bd7 {[%emt 0:00:05]} 22. Nxe5 {[%emt 0:00:29]} Bxa4 {[%emt 0:00:04]} 23. Rxd5 {[%emt 0:00:12] Weighted Error Value: White=0.02 (flawless) /Black=0.23 (precise)} 1-0

[Event "Chinese League Div-A Rapid 2022"]
[Site "Fuling,Chongqing"]
[Date "2022.09.08"]
[Round "3.3"]
[White "Zhang, Zhong"]
[Black "Chen, Qi b"]
[Result "1/2-1/2"]
[ECO "D00"]
[WhiteElo "2617"]
[BlackElo "2485"]
[Annotator "TA"]
[PlyCount "186"]
[EventDate "2022.09.07"]
[EventType "team-tourn"]
[EventCountry "CHN"]
[SourceTitle "playchess.com"]
[Source "ChessBase"]
[SourceQuality "1"]
[TimeControl "1500+10"]

{[%evp 18,186,124,110,198,181,190,137,212,186,213,202,212,214,209,221,185,152,268,185,259,168,166,154,140,127,143,127,150,122,122,122,144,122,122,122,133,140,147,147,147,147,154,122,122,118,122,125,118,117,150,127,131,0,138,137,148,139,151,116,151,151,154,104,118,107,129,75,239,123,131,105,131,83,131,56,119,63,76,14,33,25,55,27,91,91,91,91,91,91,91,91,91,91,91,91,91,91,91,89,91,77,91,91,91,91,91,91,91,99,130,118,208,198,197,190,187,187,187,176,195,153,141,0,189,33,30,0,152,0,127,51,51,45,120,38,109,12,14,10,22,0,0,0,0,-43,-7,-126,-108,-108,-119,-126,-126,-119,-121,-112,-123,-105,-91,-93,0,-461,-451,-419,-8,-8,0,-403,0,-18,0]} 1. d4 {[%emt 0:00:04]} Nf6 {[%emt 0:00:01]} 2. Nc3 {[%emt 0:00:02]} d5 {[%emt 0:00:14]} 3. Bf4 {[%emt 0:00:01]} a6 {[%emt 0:00:18]} 4. e3 {[%emt 0:00:02]} e6 {[%emt 0:00:53]} 5. g4 {[%emt 0:00:03]} Bd6 {[%emt 0:02:46]} 6. g5 {[%emt 0:00:44]} Nfd7 {[%emt 0:00:03]} 7. Qf3 {[%emt 0:01:37]} Qe7 {[%emt 0:00:44]} 8. O-O-O {[%emt 0:01:36]} c5 {[%emt 0:04:59]} 9. Nge2 {[%emt 0:02:26]} cxd4 {[%emt 0:02:05]} 10. Nxd4 {[%emt 0:01:23]} g6 {[%emt 0:04:05]} (10... Bxf4 $16 11. Qxf4 O-O) 11. h4 $18 {[%emt 0:03:02]} Nc6 {[%emt 0:02:34]} 12. h5 {[%emt 0:00:26]} (12. Bg2 $18) 12... Nxd4 {[%emt 0:03:43]} (12... Bxf4 $16 {was necessary.} 13. exf4 (13. Qxf4 e5 $14) 13... Rf8) 13. exd4 $18 {[%emt 0:00:11]} ({Don't do} 13. Rxd4 $6 Bxf4 14. exf4 (14. Rxf4 Qxg5 15. hxg6 fxg6 $11) (14. Qxf4 e5 $14) 14... Rg8 $16) 13... Rf8 {[%emt 0:00:15]} 14. Bd3 $1 {[%emt 0:00:39]} Nb6 {[%emt 0:00:21]} 15. hxg6 $1 {[%emt 0:01:40]} Bxf4+ {[%emt 0:01:42]} 16. Qxf4 {[%emt 0:00:02]} fxg6 {[%emt 0:00:02]} 17. Qe5 {[%emt 0:03:58]} Kd7 {[%emt 0:01:06]} (17... Kd8 $16 18. Kb1 Bd7) 18. f4 {[%emt 0:00:54]} Kc6 {[%emt 0:00:21]} (18... Kd8 $142 19. Rde1 Re8) 19. Rh3 {[%emt 0:01:36]} Rf7 {[%emt 0:00:05]} 20. Rdh1 {[%emt 0:01:59]} Nd7 {[%emt 0:00:35]} 21. Qe3 {[%emt 0:00:12]} Nf8 {[%emt 0:00:17]} 22. Rh4 {[%emt 0:00:39]} Bd7 {[%emt 0:00:17]} 23. Ne2 {[%emt 0:00:21]} Kb6 {[%emt 0:00:27]} 24. Ng1 {[%emt 0:01:32]} Qd6 {[%emt 0:00:02]} 25. c3 {[%emt 0:00:27]} Bb5 {[%emt 0:00:23]} 26. Bc2 {[%emt 0:00:02]} Rc8 {[%emt 0:00:14]} 27. Nf3 {[%emt 0:00:04]} Rfc7 {[%emt 0:00:03]} 28. Kb1 {[%emt 0:00:15]} Ka7 {[%emt 0:00:06]} 29. Ne5 {[%emt 0:00:26]} Ka8 {[%emt 0:00:02]} 30. Ng4 {[%emt 0:00:21]} Rf7 {[%emt 0:00:11]} 31. Nh6 {[%emt 0:00:38]} Rg7 {[%emt 0:00:35]} 32. Qe5 {[%emt 0:00:07]} Qe7 {[%emt 0:00:05]} 33. Re1 {[%emt 0:00:12]} Qd7 {[%emt 0:00:27]} 34. Qf6 {[%emt 0:00:17]} Re7 {[%emt 0:00:16]} 35. Qe5 {[%emt 0:01:14]} (35. Reh1 $16) 35... Qd8 {[%emt 0:00:13]} (35... Rg7 $1 $11) 36. Rh3 $16 {[%emt 0:00:40]} Qb6 {[%emt 0:00:08]} 37. Qe3 {[%emt 0:00:44]} Rec7 {[%emt 0:00:08]} 38. Qd2 {[%emt 0:00:01]} Qd6 {[%emt 0:00:07]} 39. Ng4 {[%emt 0:00:04]} Ka7 {[%emt 0:00:10]} 40. Nf6 {[%emt 0:00:09]} (40. Ka1 $142) 40... Rf7 $16 {[%emt 0:00:05]} 41. Rh6 {[%emt 0:00:07]} Rcc7 {[%emt 0:00:21]} 42. Qe3 {[%emt 0:00:18]} (42. Qh2 $142) 42... Qb6 $2 {[%emt 0:00:12]} (42... Rce7 $16) 43. Reh1 {[%emt 0:00:12]} (43. f5 $1 $18 {[%cal Rf5e6]}) 43... Rce7 {[%emt 0:00:20]} 44. R1h3 {[%emt 0:00:21]} Rc7 {[%emt 0:00:05]} 45. Bb3 {[%emt 0:00:24]} (45. Qf2 $142) 45... Bc6 {[%emt 0:00:14]} (45... Nd7 $142) 46. Qe5 {[%emt 0:00:09]} (46. R3h4 $16) 46... Bb5 {[%emt 0:00:10]} (46... Nd7 $14 47. Nxd7 (47. Qxe6 Nxf6 48. gxf6 Bd7 $11) 47... Rcxd7) 47. Re3 {[%emt 0:00:15]} ({White should try} 47. f5 $16) 47... Bc4 {[%emt 0:00:10]} 48. Kc2 {[%emt 0:00:15]} (48. Bc2 $16) 48... Qb5 {[%emt 0:00:11]} 49. Rh1 {[%emt 0:00:08]} a5 {[%emt 0:00:04]} 50. Qd6 {[%emt 0:00:13]} a4 {[%emt 0:00:11]} (50... Rc6 $11 51. Qa3 Bxb3+ 52. Qxb3 Qa6) 51. Qa3 $1 $16 {[%emt 0:00:10]} Bxb3+ {[%emt 0:00:17]} 52. axb3 {[%emt 0:00:01]} Qxb3+ {[%emt 0:00:06]} 53. Qxb3 {[%emt 0:00:01]} axb3+ {[%emt 0:00:01]} 54. Kxb3 {[%emt 0:00:01]} Rc6 {[%emt 0:00:08]} 55. Rh6 {[%emt 0:00:22]} Kb6 {[%emt 0:00:10]} 56. Reh3 {[%emt 0:00:15]} Rcc7 {[%emt 0:00:03]} 57. Kc2 {[%emt 0:00:06]} Kc6 {[%emt 0:00:11]} 58. Rh1 {[%emt 0:00:01]} b6 {[%emt 0:00:14]} 59. Ra1 {[%emt 0:00:10]} Kb7 {[%emt 0:00:01]} 60. Kd3 {[%emt 0:00:12]} Rce7 {[%emt 0:00:12]} 61. Ke3 {[%emt 0:00:16]} Nd7 {[%emt 0:00:09]} 62. Ng4 {[%emt 0:00:03]} Re8 {[%emt 0:00:10]} 63. Rah1 {[%emt 0:00:02]} Ree7 {[%emt 0:00:04]} 64. R6h2 {[%emt 0:00:18]} Kc6 {[%emt 0:00:13]} (64... Kc8 $16 65. b3 Kc7) 65. b3 $18 {[%emt 0:00:18]} Kb5 {[%emt 0:00:08]} 66. Ra1 {[%emt 0:00:09]} Rf8 {[%emt 0:00:32]} 67. Ra4 {[%emt 0:00:24]} Ref7 {[%emt 0:00:08]} 68. Rf2 $1 {[%emt 0:00:03]} Rc8 {[%emt 0:00:11]} 69. Rb4+ {[%emt 0:00:14]} Kc6 {[%emt 0:00:01]} 70. Ra4 {[%emt 0:00:13]} (70. c4 $16) 70... Kb5 $1 $18 {[%emt 0:00:01]} 71. Kd3 $2 {[%emt 0:00:07]} (71. Rc2 $1 $18) 71... Rcf8 $14 {[%emt 0:00:07]} 72. Ke3 {[%emt 0:00:11]} (72. Ne5 $11 Nxe5+ 73. dxe5) 72... Rc8 $1 $16 {[%emt 0:00:00]} 73. Rb4+ {[%emt 0:00:08]} Kc6 {[%emt 0:00:01]} 74. Nh6 {[%emt 0:00:01]} (74. c4 $1 $16) 74... Rff8 $14 {[%emt 0:00:07]} 75. Ra4 {[%emt 0:00:02]} Kb5 {[%emt 0:00:08]} (75... b5 $14 76. Ra7 Kd6) 76. Kd3 {[%emt 0:00:08]} (76. Rc2 $1 $16) 76... Rc7 {[%emt 0:00:24]} (76... e5 $1 $14) 77. Rb4+ {[%emt 0:00:20]} (77. Ng4 $16) 77... Kc6 $11 {[%emt 0:00:00]} 78. c4 {[%emt 0:00:05]} Ra7 {[%emt 0:00:24]} 79. Re2 {[%emt 0:00:24]} Kd6 {[%emt 0:00:09]} 80. Ke3 {[%emt 0:00:17]} Ra3 {[%emt 0:00:17]} 81. Rb2 {[%emt 0:00:01]} Ra1 {[%emt 0:00:14]} 82. Ng4 {[%emt 0:00:07]} (82. cxd5 $11 exd5 83. Ng4) 82... Re1+ $1 $17 {[%emt 0:00:02]} 83. Kf3 {[%emt 0:00:03] [#]} Re4 $1 {[%emt 0:00:05]} 84. c5+ {[%emt 0:00:19]} bxc5 {[%emt 0:00:28]} 85. dxc5+ {[%emt 0:00:04]} Nxc5 {[%emt 0:00:02]} 86. Rxe4 {[%emt 0:00:06]} Nxe4 {[%emt 0:00:01]} 87. Ke3 {[%emt 0:00:09]} Rb8 {[%emt 0:00:18]} 88. b4 {[%emt 0:00:12] [#]} Rc8 {[%emt 0:00:18]} (88... Ra8 $1 $17 {[%cal Ra8a3] Threatens to win with ...Ra3+.} 89. Nf2 Nxf2 90. Kxf2 Ra7) 89. b5 $2 {[%emt 0:00:16][%mdl 8192]} (89. Ne5 $11 {and White is okay.}) 89... Rc3+ $19 {[%emt 0:00:20]} 90. Kd4 {[%emt 0:00:09]} Rc4+ $2 {[%emt 0:00:02]} (90... Rf3 $19 91. Nf6 Nxf6 92. gxf6 Rxf4+ 93. Kc3 Rxf6) 91. Ke3 $11 {[%emt 0:00:01]} Rc3+ $2 {[%emt 0:00:05][%mdl 8192]} (91... Rc7 $11 92. b6 Rb7) 92. Kd4 $19 {[%emt 0:00:01]} Rc4+ $2 {[%emt 0:00:18]} ({Black should play} 92... Rf3 $19 93. Nf6 Nxf6 94. gxf6 Rxf4+ 95. Kc3 Rxf6) 93. Ke3 $11 {[%emt 0:00:01]} Rc3+ {[%emt 0:00:18]} 1/2-1/2

[Event "Chinese League Div-A Rapid 2022"]
[Site "Fuling,Chongqing"]
[Date "2022.09.08"]
[Round "3.4"]
[White "Guo, Qi"]
[Black "Ju, Wenjun"]
[Result "1/2-1/2"]
[ECO "D38"]
[WhiteElo "2406"]
[BlackElo "2560"]
[Annotator "TA"]
[PlyCount "62"]
[EventDate "2022.09.07"]
[EventType "team-tourn"]
[EventCountry "CHN"]
[SourceTitle "playchess.com"]
[Source "ChessBase"]
[SourceQuality "1"]
[TimeControl "1500+10"]

{[%evp 20,62,16,7,8,0,0,0,0,0,0,0,0,0,2,0,6,0,0,0,0,0,0,0,0,0,0,0,0,0,0,0,0,0,0,0,0,0,0,0,0,0,0,0,0]} 1. d4 {[%emt 0:00:05]} Nf6 {[%emt 0:00:02]} 2. c4 {[%emt 0:00:04]} e6 {[%emt 0:00:03]} 3. Nf3 {[%emt 0:00:03]} d5 {[%emt 0:00:01]} 4. Nc3 {[%emt 0:00:03]} Bb4 {[%emt 0:00:04]} 5. Bg5 {[%emt 0:00:07]} h6 {[%emt 0:00:06]} 6. Bxf6 {[%emt 0:00:11]} Qxf6 {[%emt 0:00:03]} 7. e3 {[%emt 0:00:15]} O-O {[%emt 0:00:16]} 8. Rc1 {[%emt 0:00:03]} dxc4 {[%emt 0:00:10]} 9. Bxc4 {[%emt 0:00:07]} c5 {[%emt 0:00:17]} 10. O-O {[%emt 0:00:05]} cxd4 {[%emt 0:00:07]} 11. Nxd4 {[%emt 0:01:56] The position is equal.} Bd7 {[%emt 0:01:14] D38: Queen's Gambit Declined: Ragozin Defence (4 Nf3 Bb4).} 12. Qb3 {[%emt 0:00:20]} Nc6 {[%emt 0:01:26]} 13. Nxc6 {[%emt 0:01:48]} Bxc3 {[%emt 0:00:40]} 14. Qxb7 {[%emt 0:02:05]} Bxc6 {[%emt 0:00:26]} 15. Qxc6 {[%emt 0:00:02]} Bxb2 {[%emt 0:00:11]} 16. Rc2 {[%emt 0:00:26]} Rfc8 {[%emt 0:04:08]} 17. Qe4 {[%emt 0:00:07]} Qe5 {[%emt 0:01:12] [#]} 18. Qxe5 $146 {[%emt 0:01:10]} (18. Qb7 {is more complex.} Rcb8 19. Qf3 Rd8 20. g3) ({Predecessor:} 18. Bd3 Qxe4 19. Bxe4 Rxc2 20. Bxc2 Rc8 21. Bb3 Kf8 22. Rd1 Rc1 23. Rxc1 Bxc1 24. Kf1 {½-½ (30) Guo,Q (2439)-Tan,Z (2483) Manila 2013}) 18... Bxe5 {[%emt 0:00:03]} 19. g3 {[%emt 0:00:05]} g6 {[%emt 0:00:16]} 20. Rfc1 {[%emt 0:00:08]} Rab8 {[%emt 0:00:29]} 21. Bb3 {[%emt 0:00:30]} Rxc2 {[%emt 0:00:06]} 22. Rxc2 $11 {[%emt 0:00:02][%mdl 4096] Endgame KRB-KRB} Rb7 {[%emt 0:00:18]} 23. Kg2 {[%emt 0:00:02]} Rc7 {[%emt 0:00:02]} 24. Rxc7 {[%emt 0:00:03]} Bxc7 {[%emt 0:00:02] KB-KB} 25. h4 {[%emt 0:00:06]} h5 {[%emt 0:00:01]} 26. Kf3 {[%emt 0:00:05]} Kg7 {[%emt 0:00:02]} 27. Ke4 {[%emt 0:00:08]} Kf6 {[%emt 0:00:02]} 28. Ba4 {[%emt 0:00:11]} Bb6 {[%emt 0:00:01]} 29. Bb5 {[%emt 0:00:02]} Bc7 {[%emt 0:00:02]} 30. Ba4 {[%emt 0:00:02]} Bb6 {[%emt 0:00:00]} 31. Bb5 {[%emt 0:00:01]} Bc7 {[%emt 0:00:06] An even fight not without its subleties.  Weighted Error Value: White=0.01 (flawless) /Black=0.01 (flawless)} 1/2-1/2

[Event "Chinese League Div-A Rapid 2022"]
[Site "Fuling,Chongqing"]
[Date "2022.09.08"]
[Round "3.5"]
[White "Yuan, Ye"]
[Black "Ning, Kaiyu"]
[Result "1-0"]
[ECO "D37"]
[WhiteElo "2108"]
[BlackElo "2374"]
[Annotator "TA"]
[PlyCount "83"]
[EventDate "2022.09.07"]
[EventType "team-tourn"]
[EventCountry "CHN"]
[SourceTitle "playchess.com"]
[Source "ChessBase"]
[SourceQuality "1"]
[TimeControl "1500+10"]

{[%evp 9,83,24,24,24,24,29,42,12,36,29,40,7,21,11,15,9,28,11,0,2,33,21,39,15,15,8,21,14,21,8,21,0,0,-4,0,-4,-4,-34,-35,-29,0,-41,-39,-45,-30,-41,-16,-16,-28,-123,-62,-33,-33,-102,-33,-33,-33,-75,0,0,12,0,0,0,0,0,0,0,192,170,851,795,7009,6929,5014,4986]} 1. d4 {[%emt 0:00:01]} d5 {[%emt 0:00:01]} 2. c4 {[%emt 0:00:01]} e6 {[%emt 0:00:01]} 3. Nf3 {[%emt 0:00:02]} a6 {[%emt 0:00:02]} 4. cxd5 {[%emt 0:00:09]} exd5 {[%emt 0:00:01]} 5. Nc3 {[%emt 0:02:42]} Nf6 {[%emt 0:00:02]} 6. Bg5 {[%emt 0:00:02] D37: Queen's Gambit Declined: 5 Bf4.} Be6 {[%emt 0:00:01]} 7. e3 {[%emt 0:00:35]} Nbd7 {[%emt 0:00:28]} 8. Qb3 {[%emt 0:00:22] White is slightly better.} Bd6 {[%emt 0:02:10]} 9. Bd3 {[%emt 0:01:45]} b5 {[%emt 0:00:57]} 10. Qc2 {[%emt 0:00:37]} h6 {[%emt 0:00:06]} 11. Bh4 {[%emt 0:00:02]} O-O {[%emt 0:01:03]} 12. O-O {[%emt 0:00:30] [#]} c6 $146 {[%emt 0:00:26]} ({Predecessor:} 12... Rc8 13. Rfd1 c5 14. dxc5 Rxc5 15. Qd2 b4 16. Ne2 Qb6 17. Ned4 Bb8 18. Qe2 a5 {1-0 (37) Vitenberg,N (2298)-Van der Werf,M (2393) Chess.com INT 2020}) 13. Bg3 {[%emt 0:03:37]} Bxg3 {[%emt 0:02:31]} 14. hxg3 {[%emt 0:00:02]} Qc7 {[%emt 0:00:03]} 15. Ne2 {[%emt 0:00:39]} Bg4 {[%emt 0:00:37]} 16. Nh2 {[%emt 0:00:25]} Bxe2 {[%emt 0:00:35]} 17. Qxe2 {[%emt 0:00:10]} c5 {[%emt 0:00:47]} 18. dxc5 $1 {[%emt 0:00:09]} Nxc5 {[%emt 0:00:02]} 19. Rac1 {[%emt 0:00:23]} Qd6 {[%emt 0:00:02]} 20. Bf5 {[%emt 0:01:08]} g6 {[%emt 0:00:58]} 21. Bb1 {[%emt 0:01:35]} Kg7 {[%emt 0:00:44]} 22. Rfd1 {[%emt 0:00:10]} Rac8 {[%emt 0:01:16]} 23. b4 {[%emt 0:02:03]} Na4 {[%emt 0:01:06]} 24. Qd2 {[%emt 0:00:09] Prevents Nc3.} Rc4 {[%emt 0:03:30]} 25. a3 {[%emt 0:00:46]} Rfc8 $36 {[%emt 0:00:05][%mdl 2048] [#] Hoping for ...Nc3. Black is more active.} 26. Bd3 $1 {[%emt 0:04:34]} Rc3 {[%emt 0:00:15]} 27. Nf3 {[%emt 0:00:24][%cal Bh2f3,Bf3d4,Bd4e2][%mdl 32]} R8c7 {[%emt 0:01:46]} (27... Qc7 $5 {[%cal Rc3c1]} 28. Ra1 Rxd3 29. Qxd3 Nb2 $15) 28. Rxc3 {[%emt 0:01:03]} Rxc3 {[%emt 0:01:07]} 29. Bc2 {[%emt 0:00:18]} (29. Qa2 $11) 29... Qc7 {[%emt 0:02:19]} (29... Rxa3 $17 {aiming for ...Nc3.} 30. Bxa4 Rxa4) 30. Bxa4 $15 {[%emt 0:01:08]} bxa4 {[%emt 0:00:02]} 31. Qb2 {[%emt 0:01:51]} (31. Nd4 $15) 31... Qc4 {[%emt 0:00:47]} (31... Rb3 $17 32. Qa1 Qc3 33. Qxc3 Rxc3) 32. Nd4 {[%emt 0:00:29][%cal Og3g4]} h5 {[%emt 0:00:34]} 33. Kh1 {[%emt 0:00:44]} Qc8 {[%emt 0:01:23]} (33... Ng4 $17) 34. Kg1 $11 {[%emt 0:00:23]} Rc4 {[%emt 0:00:46]} 35. Qa1 {[%emt 0:00:07]} Rc3 {[%emt 0:02:05]} 36. Ne2 {[%emt 0:00:13]} Rc2 {[%emt 0:00:42]} 37. Nd4 {[%emt 0:00:16]} Rc7 {[%emt 0:00:07]} 38. Ne2 {[%emt 0:00:20]} Qg4 $2 {[%emt 0:00:29] [#]} (38... Rc2 $11 39. Nd4 Rc3) 39. Nf4 $18 {[%emt 0:00:11]} Rc3 $2 {[%emt 0:01:10]} (39... Kh7 40. Nxd5 Nxd5 41. Rxd5 Qc4) 40. Nxd5 {[%emt 0:00:24] White is clearly winning.} ({Stronger than} 40. Qxc3 Qxd1+ 41. Kh2 g5 $14) 40... Nxd5 {[%emt 0:00:29]} 41. Rxd5 {[%emt 0:00:01]} Qc4 {[%emt 0:00:10]} 42. Rc5 {[%emt 0:00:04] Weighted Error Value: White=0.15 (very precise) /Black=0.28 (precise)} 1-0

[Event "Chinese League Div-A Rapid 2022"]
[Site "Fuling,Chongqing"]
[Date "2022.09.08"]
[Round "3.6"]
[White "Lu, Shanglei"]
[Black "Xue, Haowen"]
[Result "1-0"]
[ECO "B47"]
[WhiteElo "2616"]
[BlackElo "2128"]
[Annotator "TA"]
[PlyCount "81"]
[EventDate "2022.09.07"]
[EventType "team-tourn"]
[EventCountry "CHN"]
[SourceTitle "playchess.com"]
[Source "ChessBase"]
[SourceQuality "1"]
[TimeControl "1500+10"]

{[%evp 23,81,28,30,39,25,25,25,21,129,145,143,125,126,103,141,80,69,75,72,49,72,43,47,54,122,127,138,107,160,140,159,147,270,133,139,134,452,458,339,125,117,80,273,223,379,362,674,402,522,312,323,157,162,153,788,754,1950,1215,12835,6461]} 1. e4 {[%emt 0:00:02]} c5 {[%emt 0:00:01]} 2. Nf3 {[%emt 0:00:01]} Nc6 {[%emt 0:00:02]} 3. d4 {[%emt 0:00:02]} cxd4 {[%emt 0:00:02]} 4. Nxd4 {[%emt 0:00:01]} Qc7 {[%emt 0:00:07]} 5. Nc3 {[%emt 0:00:12]} e6 {[%emt 0:00:05]} 6. g3 {[%emt 0:00:06]} a6 {[%emt 0:00:12]} 7. Bg2 {[%emt 0:00:05]} Nf6 {[%emt 0:00:06]} 8. O-O {[%emt 0:00:02]} Be7 {[%emt 0:00:11]} 9. Re1 {[%emt 0:00:02]} O-O {[%emt 0:00:31]} 10. Nxc6 {[%emt 0:00:18]} dxc6 {[%emt 0:00:09]} 11. e5 {[%emt 0:00:04]} Rd8 {[%emt 0:00:51]} 12. Qf3 {[%emt 0:00:10]} Nd5 {[%emt 0:00:03]} 13. h4 {[%emt 0:00:02] B47: Sicilian: Taimanov: 5 Nc3 Qc7 6 f4, 6 g3 and 6 Be2.} h6 {[%emt 0:01:24]} 14. Qg4 {[%emt 0:05:35]} Kf8 {[%emt 0:00:20]} 15. Qh5 {[%emt 0:05:07] [#] White has an edge.} Qa5 $146 {[%emt 0:06:01] [#]} (15... Bb4 $11 {keeps the balance.}) ({Predecessor:} 15... Bd7 16. Bxh6 Nxc3 17. Bd2 Kg8 18. Bxc3 Be8 19. Qe2 b5 20. Bd2 c5 21. Bxa8 Rxa8 22. Bg5 Bxg5 23. hxg5 Bc6 24. f3 Qd8 25. Qe3 Qd5 26. Kf2 g6 27. b3 {1-0 (27) Murphy,C (2394)-Pribelszky,B (2343) Budapest 2021}) 16. Bxh6 $1 $16 {[%emt 0:01:37][%mdl 512]} gxh6 {[%emt 0:00:31]} (16... Nxc3 $2 17. Bd2 $1 {[%mdl 512]} Ke8 18. Bxc3 $18) 17. Qxh6+ {[%emt 0:00:01]} Ke8 {[%emt 0:00:04]} 18. Ne4 {[%emt 0:00:01][%mdl 1024] Black must now prevent c4. White has strong compensation.} b5 {[%emt 0:02:17]} 19. h5 {[%emt 0:01:41]} (19. a4 $142) 19... Kd7 {[%emt 0:00:51]} 20. Qg7 {[%emt 0:00:15] Strongly threatening h6.} Rf8 {[%emt 0:01:22]} 21. h6 {[%emt 0:07:38] And now Nf6+ would win.} (21. a4 $5) 21... Qd8 $1 {[%emt 0:03:09]} 22. b3 {[%emt 0:00:59] Threatens to win with c4.} (22. a4 $5 {[%cal Ra4b5]}) 22... b4 {[%emt 0:00:21]} 23. a3 {[%emt 0:00:01][%cal Ba2a3,Ba3b4,Bb4b5,Bb5c6][%mdl 32]} Rh8 {[%emt 0:05:45]} (23... Rg8 $14 24. Qxf7 Qf8 25. Qxf8 (25. Nc5+ Kc7 $15) 25... Rxf8) 24. axb4 $1 {[%emt 0:01:21]} (24. Qxf7 $6 Qf8 25. Qxf8 Bxf8 $11) 24... Qf8 {[%emt 0:00:31]} 25. b5 {[%emt 0:01:20] White is much more active.} Rxh6 {[%emt 0:00:26]} (25... Bb7 $142) 26. bxc6+ {[%emt 0:00:02]} Kc7 {[%emt 0:00:05] [#]} (26... Kxc6 $2 27. Qxf8 Bxf8 28. c4) 27. Qg4 {[%emt 0:00:03] Hoping for c4. Chess con chili.} (27. Qxf8 $6 Bxf8 28. Red1 Bg7 $14) 27... Rg6 {[%emt 0:01:46]} (27... f5 $16 {was necessary.} 28. exf6 Bxf6) 28. Qf3 {[%emt 0:00:08]} (28. Qe2 f5 29. exf6 Nxf6 $16) (28. Qh5 $18) 28... f5 {[%emt 0:01:36]} 29. exf6 $1 {[%emt 0:00:19][%mdl 64] Deflection} Nxf6 {[%emt 0:00:18][%mdl 8192]} (29... Rxf6 $16 {is a better chance.} 30. Nxf6 Qxf6) 30. Qc3 $18 {[%emt 0:00:48]} Nd5 {[%emt 0:00:29] [#]} 31. Qa5+ {[%emt 0:01:03]} (31. Qe5+ $1 $18 {and the rest is easy.} Bd6 32. Nxd6 Qxd6 33. Qh8) 31... Kb8 $16 {[%emt 0:00:02]} 32. b4 {[%emt 0:00:22]} Qd8 {[%emt 0:00:14] Against c7+} (32... Bxb4 $16 {might work better.} 33. Reb1 Ka7) 33. Qa4 $18 {[%emt 0:00:10] aiming for Qb3.} Qb6 $2 {[%emt 0:00:15]} (33... Nb6 34. Qb3 e5) 34. c4 {[%emt 0:00:11]} Nc7 {[%emt 0:00:20]} (34... Ra7 35. cxd5 exd5) 35. Qc2 {[%emt 0:00:29] c5 is the strong threat.} Rg8 {[%emt 0:00:17]} 36. c5 {[%emt 0:00:08]} Qxc6 {[%emt 0:00:12]} 37. Nc3 {[%emt 0:00:35]} (37. Nf6 $6 Qxg2+ 38. Kxg2 Bxf6 $18) (37. Nd6 $18 {and White stays clearly on top.} Nd5 38. Qh7) 37... Qe8 $16 {[%emt 0:00:12]} 38. b5 $36 {[%emt 0:00:01][%cal Bb4b5,Bb5b6][%mdl 2080] White is really pushing.} (38. Bxa8 $6 Kxa8 39. b5 Bxc5 $14) 38... Bxc5 $2 {[%emt 0:00:10]} (38... Rxg3 $16 39. fxg3 Bxc5+ 40. Kf1 (40. Kh2 Qh5+ 41. Bh3 e5 $18) 40... Qf7+ 41. Ke2 Ra7) 39. b6 $18 {[%emt 0:00:20] White is clearly winning.} ({Less strong is} 39. Na4 Rxg3 40. Nxc5 (40. Qxc5 Rxg2+ 41. Kxg2 Qg6+ 42. Kf1 Qd3+ 43. Kg1 Qg6+ 44. Kf1 Qd3+ 45. Kg2 Bb7+ 46. Kg1 Qg6+ 47. Kf1 Qd3+ 48. Kg1 Qg6+ 49. Kf1 Qd3+ 50. Kg1 $11) 40... Qg6 41. Qxg6 Rxg6 $18) 39... Nb5 {[%emt 0:00:08]} 40. Nxb5 {[%emt 0:00:07]} Qxb5 {[%emt 0:00:05]} 41. Reb1 {[%emt 0:00:04][%mdl 64] Deflection.  Weighted Error Value: White=0.36/Black=0.58} ({Not} 41. Qe4 Bxf2+ 42. Kxf2 Qxb6+ 43. Re3 Qb2+ 44. Kg1 (44. Re2 Qb6+ 45. Re3 Qb2+ 46. Kg1 Qxa1+ $16) 44... Qxa1+ $16) 1-0